Cogmind - Beta 13 @@@ ROGUE MODE // 2024.04.08 @ 17:17:26 Player: Calliope Result: Destroyed by Y-45 Defender with Beam Rifle Performance ------------- Evolutions (2) 1000 Regions Visited (4) 800 Robots Destroyed (82) 410 Value Destroyed (2418) 2418 Prototype IDs (2) 40 Alien Tech Used (0) 0 Bonus (27) 27 TOTAL SCORE: 4695 Bonus ------- High Alert Combat Kills 27 Cogmind --------- Core Integrity 0/550 Matter 234/300 Energy 98/100 System Corruption 7% Temperature Cool (9) Movement Core (50) Location -8/Storage Parts ------- > --- POWER (1) -------- (None) > --- PROPULSION (3) --- (None) > --- UTILITY (5) ------ Improved Utility Shielding Hacking Suite System Shield > --- WEAPON (2) ------- (None) > --- INVENTORY (5) ---- Deuterium Engine Improved Signal Interpreter Improved Terrain Scanner Peak State ------------ > --- POWER ------------ Light Nuclear Core > --- PROPULSION ------- Airjet Cesium-ion Thruster Cesium-ion Thruster > --- UTILITY ---------- Improved Utility Shielding Hacking Suite Hacking Suite Hacking Suite System Shield > --- WEAPON ----------- Scythe > --- INVENTORY -------- Deuterium Engine Airjet Improved Signal Interpreter Improved Terrain Scanner [Rating: 31] Favorites ----------- Power Light Nuclear Core Engine Improved Ion Engine Power Core Light Nuclear Core Propulsion Light Treads Treads Light Treads Leg Titanium Leg Hover Unit Airjet Flight Unit Cesium-ion Thruster Utility Improved Targeting Computer Device Field Recycling Unit Storage Large Storage Unit Processor Improved Targeting Computer Hackware Hacking Suite Protection Utility Shielding Weapon Particle Gun Energy Gun Particle Gun Energy Cannon Ion Cannon Ballistic Gun Assault Rifle Ballistic Cannon Assault Cannon Launcher Grenade Launcher Slashing Weapon Scythe Build | -11 -10 -9 -8 -8 ------- Run | Yrd Mat Mat Mat Sto Slots Evolved 4 | . . 2 2 . Power . | . . . . . Propulsion 1 | . . . 1 . Utility 3 | . . 2 1 . Weapon . | . . . . . Parts Attached 90 | 5 18 24 31 12 Power 10 | 1 3 2 3 1 Engine 7 | 1 3 1 2 . Core 3 | . . 1 1 1 Reactor . | . . . . . Propulsion 33 | 2 4 6 16 5 Treads 18 | 2 . 2 14 . Leg 7 | . 4 3 . . Wheel . | . . . . . Hover 4 | . . . 1 3 Flight 4 | . . 1 1 2 Utility 22 | . 7 6 4 5 Device 6 | . . 4 2 . Storage 3 | . 3 . . . Processor 5 | . 1 2 2 . Hackware 4 | . . . . 4 Protection 4 | . 3 . . 1 Artifact . | . . . . . Weapon 25 | 2 4 10 8 1 Energy Gun 4 | . 2 1 1 . Energy Cannon 2 | . . . 2 . Ballistic Gun 9 | 2 2 3 2 . Ballistic Cannon 1 | . . . 1 . Launcher 8 | . . 6 2 . Special Weapon . | . . . . . Impact Weapon . | . . . . . Slashing Weapon 1 | . . . . 1 Piercing Weapon . | . . . . . Special Melee Weapon . | . . . . . Unidentified Prototypes 2 | . . 2 . . Parts Lost 20 | . 1 5 5 9 Power 4 | . 1 1 1 1 Propulsion 7 | . . 1 1 5 Utility 4 | . . 1 1 2 Weapon 5 | . . 2 2 1 Highest Loss Streak 6 | . 1 2 2 6 To Critical Strikes . | . . . . . Average Slot Usage (%) 95 | . 92 97 99 73 Engine 7 | . 13 4 3 . Core 3 | . . 5 5 4 Treads 14 | . 20 3 27 1 Leg 9 | . 7 16 . . Device 7 | . . 16 1 . Storage 8 | . 3 13 9 . Processor 14 | . 3 13 34 2 Hackware 1 | . . . . 28 Protection 4 | . 14 . . 8 Energy Gun 5 | . 13 1 1 . Ballistic Gun 10 | . 14 12 2 . Ballistic Cannon 1 | . . . 6 . Launcher 3 | . . 7 3 . Naked Turns . | . . . . . Heaviest Build 43 | 8 35 43 40 40 Greatest Support 64 | 40 40 40 64 42 Greatest Overweight (x) 12 | . 3 12 1 1 Average Overweight (x) . | . . . . . Largest Inventory Capacity 15 | 5 15 15 15 15 Average Capacity 11 | 5 5 15 15 5 Most Carried 15 | 1 7 15 15 15 Average Carried 10 | . 5 12 14 4 Final Capacity 15 | 5 15 15 15 5 Final Carried 15 | 1 7 14 15 3 Class Distribution -------------------- 82% | Mutant 13% | Scavenger-Mutant Dominant Class ---------------- Mutant | -10/Materials Mutant | -9/Materials Mutant | -8/Materials Hacker-Sprinter | -8/Storage Resources | -11 -10 -9 -8 -8 ----------- Run | Yrd Mat Mat Mat Sto Matter Collected 1895 | 219 307 761 560 48 Remotely . | . . . . . Salvage Created 2482 | . 584 998 852 48 Parts 168 | . 34 87 41 6 Haulers Intercepted 2 | . . 2 . . Recyclers Shooed 1 | . . 1 . . Parts Field Recycled 23 | . . 23 . . Retrieved Matter 90 | . . 90 . . Parts Self-Destructed . | . . . . . Prevented . | . . . . . Kills | -11 -10 -9 -8 -8 ------- Run | Yrd Mat Mat Mat Sto Combat Hostiles Destroyed 61 | . 15 26 20 . Guns 29 | . 15 11 3 . Cannons 13 | . . . 13 . AOE 19 | . . 15 4 . Classes Destroyed 10 | . 4 4 1 1 Worker 3 | . . 2 1 . Builder 1 | . . . . 1 Hauler 2 | . . 2 . . Recycler 2 | . . 2 . . Operator 7 | . 3 2 1 1 Watcher 6 | . 1 5 . . Swarmer 12 | . 3 9 . . Grunt 36 | . 12 11 13 . Sentry 12 | . . 6 6 . Hunter 1 | . . . 1 . Best Kill Streak 10 | . 3 10 5 1 Combat Bots Only 8 | . 3 8 3 . Max Kills in Single Turn 4 | . 2 4 2 1 Gunslinging 1 | . 1 . . . Exploded 4 | . . 4 2 . Melee . | . . . . . Uniques/NPCs Destroyed . | . . . . . Combat | -11 -10 -9 -8 -8 -------- Run | Yrd Mat Mat Mat Sto Hostile Shots Fired 361 | . 58 132 101 70 Missed 106 | . 10 43 34 19 Damage Taken 3759 | . 590 1177 1171 821 Core 865 | . 110 201 119 435 Absorbed by Shields . | . . . . . Redirected to Shielding 51 | . 8 . . 43 Regen/Repaired (Parts) 114 | . 70 44 . . Core Remaining (%) 68 | 100 56 49 . . Volleys Fired 189 | . 50 70 69 . Largest 2 | . 2 2 2 . Hottest 125 | . 85 85 125 . Shots Fired 331 | . 100 120 111 . Gun 244 | . 100 98 46 . Cannon 59 | . . . 59 . Launcher 28 | . . 22 6 . Special . | . . . . . Kinetic 210 | . 61 91 58 . Thermal 93 | . 39 7 47 . Explosive 28 | . . 22 6 . Electromagnetic . | . . . . . Robot Hit Streak 26 | . 10 24 26 . Robot Miss Streak 3 | . 3 3 2 . Penetration Max . | . . . . . Secondary Targets 3 | . 1 1 1 . Max Gunslinging Chain 1 | . 1 1 1 . Shots Hit Robots 246 | . 64 87 84 11 Core Hits 139 | . 33 65 40 1 Critical Kills . | . . . . . Critical Parts Destroyed 2 | . . 1 1 . Critical Strikes 14 | . . 2 9 3 Burn 2 | . . 1 1 . Destroy 2 | . . 1 1 . Blast 7 | . . . 7 . Sever 3 | . . . . 3 Melee Attacks 19 | . . . . 19 Impact . | . . . . . Slashing 19 | . . . . 19 Piercing . | . . . . . Sneak Attacks 1 | . . . . 1 Combat Hostiles . | . . . . . Follow-up Attacks . | . . . . . Damage Inflicted 5816 | . 865 2476 2074 401 Guns 2492 | . 865 1100 527 . Cannons 1030 | . . . 1030 . Explosions 1885 | . . 1373 512 . Melee 401 | . . . . 401 Ramming 8 | . . 3 5 . Kinetic 2390 | . 456 1060 874 . Thermal 1132 | . 409 40 683 . Explosive 1885 | . . 1373 512 . Electromagnetic . | . . . . . Impact . | . . . . . Slashing 401 | . . . . 401 Piercing . | . . . . . Highest Corruption 7 | . . 3 2 7 Average Corruption 2 | . . 2 1 2 Corruption Purged . | . . . . . Corruption Blocked . | . . . . . Effects 68 | . . 55 9 4 Message Errors 19 | . . 15 1 3 Matter Fused 16 | . . 15 1 . Heat Flow Errors 5 | . . 4 . 1 Energy Discharges 9 | . . 6 3 . Parts Rejected 2 | . . 2 . . Data Loss (minor) 8 | . . 6 2 . Data Loss (major) 3 | . . 2 1 . Misfires 2 | . . 2 . . Alerts 3 | . . 2 1 . Weapon Failures 1 | . . 1 . . Overload Shots . | . . . . . Overflow Damage 89 | . . 42 6 41 Projectiles . | . . . . . Explosions 48 | . . 42 6 . Melee 41 | . . . . 41 Knockbacks 5 | . . . 5 . Impact 1 | . . . 1 . Kinetic 4 | . . . 4 . Secondary . | . . . . . Self-Inflicted Damage 83 | . . 81 2 . Shots 8 | . . 7 1 . Rammed . | . . . . . Targets Rammed 2 | . . 1 1 . Kicked 1 | . . 1 . . Crushed 1 | . . . 1 . Highest Temperature 301 | . 301 278 241 122 Average Temperature 75 | . 84 53 80 61 Received Heat Transfer 1428 | . 309 327 459 333 Siege Activations . | . . . . . Robots Corrupted . | . . . . . Combat Hostiles . | . . . . . Parts Fried . | . . . . . Impact Corruptions . | . . . . . Robots Melted . | . . . . . Combat Hostiles . | . . . . . Parts Melted 3 | . 2 . 1 . Heat Transferred 2516 | . 999 185 1332 . Parts Sabotaged . | . . . . . Parts Stolen . | . . . . . Parts Stripped . | . . . . . Power Chain Reactions . | . . . . . Alert | -11 -10 -9 -8 -8 ------- Run | Yrd Mat Mat Mat Sto Peak Influence 472 | . 184 472 396 125 Initial 169 | . . 67 169 125 Average 185 | . 70 242 272 34 Maximum Alert Level 2 | . . 2 1 . Low Security (%) 56 | 100 100 37 21 100 Level 1 35 | . . 43 78 . Level 2 7 | . . 19 . . Level 3 . | . . . . . Level 4 . | . . . . . Level 5 . | . . . . . High Security . | . . . . . Max Security . | . . . . . Squads Dispatched 13 | . 5 1 7 . Investigation 3 | . 2 . 1 . Extermination . | . . . . . Reinforcement 7 | . 3 1 3 . Assault . | . . . . . Garrison 3 | . . . 3 . Intercept . | . . . . . Searches Triggered . | . . . . . Construction Impeded 1 | . . . 1 . Haulers Reinforced . | . . . . . Active Scanning Responses . | . . . . . Cargo Convoy Interrupts . | . . . . . Stealth | -11 -10 -9 -8 -8 --------- Run | Yrd Mat Mat Mat Sto Distress Signals 3 | . 1 1 1 . Communications Jammed . | . . . . . Distress Signals . | . . . . . Times Spotted 103 | . 31 34 27 11 Peak Tracking Total 10 | . 5 8 3 10 Tactical Retreats 2 | . 1 . 1 . Traps | -11 -10 -9 -8 -8 ------- Run | Yrd Mat Mat Mat Sto Traps Triggered 10 | . 5 2 3 . Indirectly . | . . . . . Trap Hack Attempts . | . . . . . Triggered . | . . . . . Disarmed . | . . . . . Reprogrammed . | . . . . . Reused . | . . . . . Traps Extracted . | . . . . . Installed . | . . . . . Triggered . | . . . . . Machines | -11 -10 -9 -8 -8 ---------- Run | Yrd Mat Mat Mat Sto Machines Disabled 2 | . . . . 2 Max in Single Turn 1 | . . . . 1 Machines Repaired . | . . . . . Machines Dismantled . | . . . . . Machines Sabotaged . | . . . . . Overloaded Fab Kills . | . . . . . Hacking | -11 -10 -9 -8 -8 --------- Run | Yrd Mat Mat Mat Sto Machines Accessed 21 | . 7 8 4 2 Terminals 14 | . 5 5 2 2 Fabricators . | . . . . . Repair Stations 2 | . 1 1 . . Recycling Units 2 | . 1 1 . . Scanalyzers 2 | . . 1 1 . Garrison Access 1 | . . . 1 . Total Hacks 61 | . 19 30 8 4 Successful 36 | . 11 17 4 4 Failed 25 | . 8 13 4 . Catastrophic 3 | . . 1 2 . Database Lockouts . | . . . . . Manual 32 | . 7 19 4 2 Terminals 36 | . 10 18 4 4 Fabricators . | . . . . . Repair Stations 9 | . 6 3 . . Recycling Units 4 | . 3 1 . . Scanalyzers 10 | . . 8 2 . Garrison Access 2 | . . . 2 . Terminal Hacks 6 | . 1 2 . 3 Robot Analysis 1 | . . . . 1 Open Door 1 | . . . . 1 Level Access Points 1 | . . 1 . . Terminal Index 1 | . 1 . . . Alert Level 1 | . . 1 . . Unreport Threat 1 | . . . . 1 Fabricator Hacks . | . . . . . Repair Station Hacks 6 | . 4 2 . . Scan Component 4 | . 3 1 . . Repair 2 | . 1 1 . . Recycling Unit Hacks 2 | . 1 1 . . Report Inventory 2 | . 1 1 . . Scanalyzer 8 | . . 6 2 . Insert Component 4 | . . 3 1 . Analyze 4 | . . 3 1 . Garrison Access Hacks . | . . . . . Unauthorized Hacks 14 | . 5 6 2 1 Terminals 14 | . 5 6 2 1 Track 1 | . . 1 . . Assimilate 1 | . . 1 . . Botnet 12 | . 5 4 2 1 Fabricators . | . . . . . Repair Stations . | . . . . . Recycling Units . | . . . . . Scanalyzers . | . . . . . Garrison Access . | . . . . . Data Cores Recovered 1 | . . . . 1 Used . | . . . . . Hacking Detections 15 | . 4 7 3 1 Full Trace Events 4 | . 2 1 1 . Feedback Events . | . . . . . Feedback Blocked . | . . . . . Robot Schematics Acquired . | . . . . . Robots Built . | . . . . . Authchips . | . . . . . Time . | . . . . . Total Robot Build Rating . | . . . . . Part Schematics Acquired 3 | . . 3 . . Parts Built . | . . . . . Authchips . | . . . . . Time . | . . . . . Total Part Build Rating . | . . . . . Parts Repaired 2 | . 1 1 . . Time 39 | . 26 13 . . Parts Recycled . | . . . . . Recycled Matter . | . . . . . Retrieved Matter . | . . . . . Retrieved Components . | . . . . . Parts Scanalyzed 4 | . . 3 1 . Part Schematics Acquired 3 | . . 3 . . Parts Damaged 1 | . . 1 . . Bothacking | -11 -10 -9 -8 -8 ------------ Run | Yrd Mat Mat Mat Sto Used RIF Installer . | . . . . . Robots Hacked . | . . . . . Non-combat . | . . . . . Combat . | . . . . . Robot Hacks Applied . | . . . . . Relay Couplers Released . | . . . . . Fabnet Peak Effective % . | . . . . . Robots Rewired . | . . . . . Allies Hacked . | . . . . . Hacks Repelled . | . . . . . Allies | -11 -10 -9 -8 -8 -------- Run | Yrd Mat Mat Mat Sto Total Allies . | . . . . . Largest Group . | . . . . . Highest-Rated Group . | . . . . . Highest-Rated Ally . | . . . . . Total Orders . | . . . . . Ally Attacks . | . . . . . Total Damage . | . . . . . Kills . | . . . . . Allies Corrupted . | . . . . . Allies Melted . | . . . . . Intel | -11 -10 -9 -8 -8 ------- Run | Yrd Mat Mat Mat Sto Robot Analysis Total 1 | . . . . 1 Derelict Logs Recovered . | . . . . . Drone Launches . | . . . . . Drone Recoveries . | . . . . . Exploration | -11 -10 -9 -8 -8 ------------- Run | Yrd Mat Mat Mat Sto Turns Passed 7146 | 78 2259 2959 1602 248 Spaces Moved 3265 | 48 963 1190 812 252 Core 67 | 6 24 8 . 29 Treads 1530 | 42 503 163 812 10 Legs 1455 | . 436 1019 . . Wheels . | . . . . . Hover 54 | . . . . 54 Flight 159 | . . . . 159 Fastest Speed 32 | 50 100 130 150 32 Average Speed 159 | 146 144 199 155 50 Slowest Speed 650 | 160 200 650 240 152 Overloaded Moves . | . . . . . Propulsion Burnouts . | . . . . . Robots Hopped . | . . . . . Cave-ins Triggered 1 | . . . . 1 Exploration Rate (%) 51 | 3 98 75 56 27 Regions Visited 4 Branch Regions 1 Pre-discovered Areas . | . . . . . Known Exits Taken 1 | . . 1 . . Unknown Exits Taken 3 | 1 1 . 1 . Scrap Searched . | . . . . . Spaces Dug 5 | . . . . 5 Terrain Destroyed 197 | . . 128 64 5 Melee 5 | . . . . 5 Projectile 3 | . . . 3 . AOE 189 | . . 128 61 . Terrain Rammed . | . . . . . Walls Destroyed . | . . . . . Machines Disabled . | . . . . . Actions | -11 -10 -9 -8 -8 --------- Run | Yrd Mat Mat Mat Sto Total 4840 | 53 1729 1668 1047 343 Wait 1169 | . 683 335 96 55 Move 3261 | 47 962 1189 811 252 Hop . | . . . . . Pick Up 53 | 1 7 24 16 5 Fast Attach 39 | 5 16 10 3 5 Attach 21 | . 1 7 6 7 Detach 6 | . 1 5 . . Swap 30 | . 1 7 22 . Drop 51 | . 8 20 23 . Fire 189 | . 50 70 69 . Melee 19 | . . . . 19 Ram . | . . . . . Kick 1 | . . 1 . . Crush 1 | . . . 1 . Escape Stasis . | . . . . . Rewire . | . . . . . Trap . | . . . . . Miscellaneous . | . . . . . Route ------- -11/Scrapyard -10/Materials (discovered 4 exits: *Mat x3 / [*Min]) -9/Materials (discovered 3 exits: *Mat x3) -8/Materials (discovered 3 exits: [*Fac] / *Sto x2) -8/Storage History --------- Turn | Location | Event 48 | -11/Scrapyard | Discovered new exit (range 15) 79 | -11/Scrapyard | Entered Materials 318 | -10/Materials | Build established: Mutant 979 | -10/Materials | Discovered new exit (range 9) 1739 | -10/Materials | Discovered new exit (range 16) 1840 | -10/Materials | Repaired Assault Rifle 2097 | -10/Materials | Discovered new exit (range 11) 2216 | -10/Materials | Discovered new exit (range 13) 2338 | -10/Materials | Entered another Materials area 2338 | -9/Materials | Evolved 2 slots: Utility x2 2748 | -9/Materials | Destroyed 8 combat bots 2929 | -9/Materials | Discovered new exit (range 16) 3437 | -9/Materials | Discovered new exit (range 8) 4255 | -9/Materials | Identified exit to Materials 4707 | -9/Materials | Core integrity fell below 50% 5086 | -9/Materials | Build established: Scavenger-Mutant 5171 | -9/Materials | Repaired Grenade Launcher 5297 | -9/Materials | Entered another Materials area 5297 | -8/Materials | Evolved 2 slots: Propulsion x1, Utility x1 5373 | -8/Materials | Garrison activated, responded to threat 5505 | -8/Materials | Discovered new exit (range 11) 5845 | -8/Materials | Build established: Mutant 6298 | -8/Materials | Build established: Scavenger-Mutant 6635 | -8/Materials | Build established: Mutant 6683 | -8/Materials | Discovered new exit (range 16) 6885 | -8/Materials | Discovered new exit (range 4) 6899 | -8/Materials | Entered Storage 6915 | -8/Storage | Released all parts (11) 7067 | -8/Storage | Core integrity fell below 50% 7103 | -8/Storage | Lost 6 parts (1p4n1u) 7113 | -8/Storage | Crushed by falling debris 7118 | -8/Storage | Core integrity fell below 20% 7147 | -8/Storage | Destroyed by Y-45 Defender with Beam Rifle Last Messages --------------- 07064_ Y-45 Defender Lgt. Treads severed. 07066_ Cesium-ion Thruster destroyed. 07066_ Critical hit (Burn: +37). 07072_ Airjet destroyed. 07077_ Sneak attack on U-05 Engineer. 07077_ U-05 Engineer destroyed. 07079_ Acquired 28 matter. 07109_ Airjet destroyed. 07113_ The unstable cave ceiling collapses. 07113_ Crushed by falling debris. [Achievement: Unlikely Earthworm] 07113_ Hacking Suite destroyed. 07113_ System corrupted by crushing effect (+5). 07115_ &Z2U1NVMF&V%YHIBA1Q